bitfinex/quotes_SOLUSD_20250928
["timestamp","ask_amount","ask_price","bid_price","bid_amount"]
[1759020988250,1.97024114,203.44,203.39,4.91666256]
[1759020988450,0.67,203.43,203.39,4.91666256]
[1759020988951,0.67,203.43,203.39,5.60666256]
[1759020989255,0.67,203.42,203.39,5.60666256]
[1759020991949,0.67,203.42,203.39,86.10666256]
[1759020993046,0.67,203.42,203.39,85.41666256]
[1759020996161,0.67,203.42,203.39,86.10666256]
[1759020999946,1.30024114,203.43,203.39,86.10666256]
[1759021000148,1.97024114,203.43,203.39,86.10666256]
[1759021001055,1.97024114,203.43,203.4,0.69]
[1759021002368,1.97024114,203.43,203.39,86.10666256]
[1759021003866,0.67,203.43,203.41,4.91617914]
[1759021004885,0.67,203.51,203.42,1.99024114]
[1759021005055,3.30743412,203.5,203.43,1.99024114]
[1759021005255,3.30743412,203.49,203.44,0.69]
[1759021005559,3.30743412,203.48,203.44,0.69]
[1759021005767,0.67,203.5,203.44,0.69]
[1759021006072,3.30725225,203.49,203.45,4.91521258]
[1759021006249,1.30024114,203.51,203.46,0.69]
[1759021006449,3.97892766,203.5,203.46,0.69]
[1759021006649,3.30892766,203.49,203.46,0.69]
[1759021006852,0.67,203.5,203.46,0.69]
[1759021007055,38.3,203.55,203.42,84.42047668]
[1759021007056,2.03306337,203.47,203.42,90.02637203]
[1759021007256,0.67,203.46,203.42,85.41589535]
[1759021007569,0.67,203.45,203.42,86.10589535]
[1759021007862,2.70306337,203.47,203.42,86.10589535]
[1759021008169,0.67,203.46,203.42,86.10589535]
[1759021008568,0.67,203.46,203.42,85.41589535]
[1759021008766,2.70306337,203.48,203.43,0.69]
[1759021008967,3.98136783,203.47,203.43,0.69]
[1759021009161,0.67,203.47,203.43,0.69]
[1759021010051,0.67,203.47,203.44,4.91545418]
[1759021011463,2.03306337,203.48,203.44,0.68]
[1759021011664,2.73306337,203.48,203.44,0.68]
[1759021011866,2.03306337,203.48,203.44,0.68]
[1759021012263,2.03306337,203.48,203.43,17.20493535]
[1759021012563,2.03306337,203.49,203.43,17.20493535]
[1759021012871,4.01222519,203.48,203.44,0.68]
[1759021013079,0.7,203.48,203.44,0.68]
[1759021013283,2.03306337,203.49,203.44,0.68]
[1759021013477,4.01195217,203.48,203.45,4.91521258]
[1759021013660,0.7,203.48,203.45,4.91521258]
[1759021014280,2.73306337,203.48,203.45,4.91521258]
[1759021014577,0.7,203.47,203.43,80.5]
[1759021014773,0.7,203.46,203.43,80.5]
[1759021014967,2.03306337,203.46,203.43,80.5]
[1759021015170,2.73306337,203.46,203.43,85.41565538]
[1759021015378,2.73306337,203.46,203.43,86.09565538]
[1759021016274,2.03306337,203.46,203.43,86.09565538]
[1759021017165,3.86483348,203.52,203.43,80.5]
[1759021017166,2.73306337,203.45,203.43,80.5]
[1759021017762,2.73306337,203.45,203.43,85.41569389]
[1759021018155,2.03306337,203.45,203.43,85.41569389]
[1759021018867,2.03306337,203.46,203.43,85.41569389]
[1759021019067,0.7,203.46,203.43,85.41569389]
[1759021019666,2.73306337,203.46,203.43,85.41569389]
[1759021021585,2.03306337,203.44,203.41,80.5]
[1759021021761,2.73306337,203.44,203.41,80.5]
[1759021022259,2.03306337,203.42,203.39,80.5]
[1759021022569,2.03306337,203.4,203.36,0.68]
[1759021022778,2.73306337,203.4,203.36,0.68]
[1759021022989,2.03306337,203.39,203.36,0.68]
[1759021023179,2.03306337,203.39,203.37,0.68]
[1759021023577,3.31352627,203.43,203.37,5.59705403]
[1759021023780,5.34658964,203.42,203.38,0.68]
[1759021023996,4.13979202,203.49,203.38,0.68]
[1759021024182,2.03306337,203.45,203.38,81.18]
[1759021024371,5.34695203,203.44,203.39,0.68]
[1759021024568,2.03306337,203.44,203.39,81.18]
[1759021024772,2.03306337,203.44,203.4,0.68]
[1759021024985,2.03306337,203.44,203.41,0.68]
[1759021025488,2.73306337,203.44,203.41,5.59616845]
[1759021025695,2.03306337,203.42,203.39,86.09644819]
[1759021025880,2.03306337,203.41,203.39,85.41644819]
[1759021026118,2.03306337,203.4,203.39,85.41644819]
[1759021026280,2.03306337,203.4,203.39,86.09644819]
[1759021026599,2.03306337,203.41,203.39,86.09644819]
[1759021027589,2.03306337,203.41,203.39,5.59644819]
[1759021028669,2.03306337,203.42,203.39,17.20810461]
[1759021028871,2.03306337,203.43,203.4,0.68]
[1759021029272,4.13979202,203.49,203.41,0.72]
[1759021029471,5.34833847,203.48,203.41,83.25306337]
[1759021029672,2.03306337,203.49,203.42,2.75306337]
[1759021029872,2.03306337,203.49,203.43,0.72]
[1759021030593,2.03306337,203.49,203.44,17.20408964]
[1759021030791,2.03306337,203.54,203.47,2.03306337]
[1759021031097,2.03306337,203.52,203.48,0.72]
[1759021031289,2.69306337,203.52,203.48,0.72]
[1759021031497,2.03306337,203.51,203.48,0.72]
[1759021031979,2.03306337,203.52,203.49,0.72]
[1759021032693,2.03306337,203.52,203.5,4.91400491]
[1759021034087,2.69306337,203.51,203.48,4.91442643]
[1759021034284,2.03306337,203.5,203.48,5.63442643]
[1759021034673,2.03306337,203.51,203.48,5.63442643]
[1759021035276,2.03306337,203.5,203.48,4.91442643]
[1759021036703,2.03306337,203.5,203.48,85.41442643]
[1759021039302,2.69306337,203.49,203.48,80.5]
[1759021039878,2.03306337,203.49,203.48,80.5]
[1759021043123,3.3095355,203.54,203.48,98.39070768]
[1759021043278,2.23306337,203.55,203.49,119.25]
[1759021043490,0.2,203.55,203.49,121.28306337]
[1759021043788,2.23306337,203.55,203.5,0.69]
[1759021044185,2.23306337,203.55,203.5,85.25612674]
[1759021044186,0.2,203.55,203.5,85.25612674]
[1759021044387,0.2,203.55,203.51,40.78306337]
[1759021044588,0.2,203.55,203.51,2.72306337]
[1759021044793,0.2,203.55,203.52,42.05750431]
[1759021045099,0.2,203.55,203.53,0.69]
[1759021045303,0.2,203.55,203.54,5.6030392]
[1759021045687,0.2,203.55,203.54,8.91054351]
[1759021045889,2.93306337,203.55,203.54,3.30750431]
[1759021046096,2.93306337,203.55,203.53,80.5]
[1759021046298,2.03306337,203.54,203.53,80.5]
[1759021048402,2.03306337,203.54,203.51,5.60373618]
[1759021048623,2.03306337,203.53,203.51,5.60373618]
[1759021049296,2.03306337,203.53,203.51,86.10373618]
[1759021050399,2.03306337,203.54,203.51,86.10373618]
[1759021050715,2.03306337,203.52,203.51,80.5]
[1759021050891,2.73306337,203.52,203.51,80.5]
[1759021052608,2.73306337,203.52,203.46,80.5]
[1759021052904,2.03306337,203.47,203.46,80.5]
[1759021053510,2.73306337,203.47,203.46,80.5]
[1759021053809,2.73306337,203.47,203.45,80.5]
[1759021054109,2.03306337,203.46,203.45,80.5]
[1759021054414,4.00750431,203.52,203.45,0.69]
[1759021054598,2.03306337,203.49,203.45,81.19]
[1759021054805,2.03306337,203.47,203.46,0.69]
[1759021055106,2.03306337,203.47,203.46,81.19]
[1759021055513,2.03306337,203.48,203.46,81.19]
[1759021056598,2.03306337,203.48,203.46,86.10493712]
[1759021056796,2.03306337,203.5,203.47,0.69]
[1759021057003,2.03306337,203.51,203.47,0.69]
[1759021057206,2.03306337,203.5,203.47,0.69]
[1759021057408,2.03306337,203.5,203.48,0.69]
[1759021057702,4.00394556,203.54,203.47,80.5]
[1759021057703,3.30394556,203.54,203.49,0.69]
[1759021058022,2.03306337,203.53,203.49,0.69]
[1759021058395,0.2,203.55,203.49,0.69]
[1759021058600,0.2,203.55,203.5,17.19901719]
[1759021058810,0.2,203.55,203.51,0.69]
[1759021060024,0.2,203.55,203.51,81.19]
[1759021060221,0.2,203.55,203.52,0.69]
[1759021060521,0.2,203.55,203.53,4.91328059]
[1759021060931,0.2,203.55,203.54,0.69]
[1759021062715,0.2,203.55,203.54,5.6030392]
[1759021064210,0.2,203.55,203.54,4.9130392]
[1759021064718,0.2,203.55,203.53,4.91328059]
[1759021065709,0.2,203.58,203.55,80.3]
[1759021065908,0.2,203.58,203.56,0.69]
[1759021066603,0.2,203.58,203.57,4.91231517]
[1759021067034,0.2,203.58,203.56,4.91255223]
[1759021068014,0.2,203.58,203.57,0.69]
[1759021068315,0.2,203.58,203.56,5.60255223]
[1759021068633,0.2,203.58,203.57,0.69]
[1759021069210,0.2,203.58,203.57,80.3]
[1759021072039,0.2,203.58,203.57,85.21231517]
[1759021072528,1.49975367,203.58,203.55,1.97078314]
[1759021072727,1.29975367,203.56,203.53,80.3]
[1759021072925,1.29975367,203.54,203.53,80.3]
[1759021073124,1.98975367,203.54,203.53,80.3]
[1759021073635,1.98975367,203.54,203.5,85.21399629]
[1759021073811,1.29975367,203.52,203.5,85.21399629]
[1759021076945,1.29975367,203.51,203.5,85.21399629]
[1759021077935,1.29975367,203.52,203.5,85.21399629]
[1759021078127,1.29975367,203.52,203.5,219.91399629]
[1759021079938,1.29975367,203.51,203.5,219.91399629]
[1759021080250,1.29975367,203.52,203.5,220.61399629]
[1759021080435,1.29975367,203.53,203.5,220.61399629]
[1759021080744,1.29975367,203.53,203.51,0.7]
[1759021081050,1.29975367,203.53,203.52,0.7]
[1759021081431,1.29975367,203.53,203.5,220.61399629]
[1759021081637,1.29975367,203.53,203.51,0.7]
[1759021082057,1.29975367,203.53,203.51,5.61354628]
[1759021082237,1.29975367,203.53,203.51,4.91354628]
[1759021082550,1.29975367,203.53,203.51,5.61354628]
[1759021083129,1.29975367,203.53,203.51,4.91354628]
[1759021083453,1.29975367,203.52,203.51,4.91354628]
[1759021084046,0.69,203.55,203.52,79.00024633]
[1759021084227,1.29975367,203.53,203.52,79.00024633]
[1759021084845,1.98975367,203.53,203.52,79.00024633]
[1759021091762,40.04975367,203.53,203.52,79.00024633]
[1759021091963,43.35692101,203.53,203.52,79.00024633]
[1759021092358,40.04975367,203.53,203.52,79.00024633]
[1759021092660,43.35692101,203.53,203.52,79.00024633]
[1759021093055,40.04975367,203.53,203.52,79.00024633]
[1759021093367,43.35692101,203.53,203.52,79.00024633]
[1759021094656,5.29692101,203.53,203.52,79.00024633]
[1759021094857,43.35692101,203.53,203.52,79.00024633]
[1759021095557,5.29692101,203.53,203.52,79.00024633]
[1759021095764,43.35692101,203.53,203.52,79.00024633]
[1759021096337,40.04975367,203.53,203.52,79.00024633]
[1759021096743,43.35692101,203.53,203.52,79.00024633]
[1759021096951,40.04975367,203.53,203.52,79.00024633]
[1759021097447,43.35692101,203.53,203.52,79.00024633]
[1759021097756,5.29692101,203.53,203.52,79.00024633]
[1759021097947,1.98975367,203.53,203.52,79.00024633]
[1759021098143,13.59559401,203.52,203.47,79.00024633]
[1759021098350,1.29975367,203.48,203.47,79.00024633]
[1759021098874,39.35975367,203.48,203.47,79.00024633]
[1759021099559,1.95975367,203.48,203.47,79.00024633]
[1759021099761,40.01975367,203.48,203.47,79.00024633]
[1759021100570,39.35975367,203.48,203.47,79.00024633]
[1759021100775,40.07975367,203.48,203.47,79.00024633]
[1759021101075,43.38623886,203.48,203.42,79.00024633]
[1759021101254,1.29975367,203.43,203.42,79.00024633]
[1759021101458,1.29975367,203.43,203.42,79.72024633]
[1759021103049,1.29975367,203.43,203.42,79.00024633]
[1759021103461,2.01975367,203.43,203.42,79.00024633]
[1759021103666,40.07975367,203.43,203.42,79.00024633]
[1759021104555,40.07975367,203.43,203.38,79.00024633]
[1759021104757,1.29975367,203.39,203.35,0.72]
[1759021105073,13.59559401,203.43,203.35,0.72]
[1759021105074,1.29975367,203.36,203.35,0.72]
[1759021106377,1.29975367,203.36,203.34,79.00024633]
[1759021106568,1.29975367,203.35,203.34,79.72024633]
[1759021107452,39.35975367,203.35,203.34,79.00024633]
[1759021107971,39.35975367,203.35,203.32,79.82024633]
[1759021108185,1.29975367,203.33,203.32,79.10024633]
[1759021108855,1.29975367,203.33,203.32,79.82024633]
[1759021113373,38.8,203.35,203.32,79.10024633]
[1759021113689,1.29975367,203.33,203.32,79.82024633]
[1759021116860,38.08,203.35,203.33,77.70049266]
[1759021117072,1.29975367,203.34,203.33,77.70049266]
[1759021119556,1.29975367,203.34,203.33,78.42049266]
[1759021119872,1.29975367,203.34,203.33,77.70049266]
[1759021121778,1.29975367,203.36,203.34,77.70049266]
[1759021121983,1.29975367,203.37,203.34,78.42049266]
[1759021122176,1.29975367,203.37,203.35,0.72]
[1759021122686,1.29975367,203.37,203.35,78.42049266]
[1759021123280,1.29975367,203.37,203.36,0.72]
[1759021123864,0.72,203.39,203.36,0.72]
[1759021124163,1.29975367,203.37,203.36,78.42049266]
[1759021124473,3.28652242,203.43,203.36,78.42049266]
[1759021124474,1.29975367,203.4,203.36,83.33788054]
[1759021124672,1.29975367,203.4,203.37,0.72]
[1759021124869,1.29975367,203.39,203.38,0.72]
[1759021126083,1.29975367,203.43,203.38,83.33739697]
[1759021126284,1.29975367,203.43,203.39,0.72]
[1759021127272,1.29975367,203.43,203.4,4.91642084]
[1759021127488,38.8,203.45,203.4,4.91642084]
[1759021127489,1.29975367,203.44,203.4,5.63642084]
[1759021127690,1.29975367,203.44,203.41,0.72]
[1759021128080,1.29975367,203.44,203.42,0.72]
[1759021128392,1.29975367,203.44,203.41,0.72]
[1759021128689,2.03434437,203.44,203.41,0.72]
[1759021131073,2.03434437,203.42,203.38,92.49521588]
[1759021131276,2.03434437,203.41,203.38,82.61739486]
[1759021131494,2.03434437,203.41,203.39,0.7]
[1759021131668,0.72,203.44,203.43,37.58614829]
[1759021131868,2.75434437,203.44,203.43,37.58614829]
[1759021135387,40.81434437,203.44,203.43,37.58614829]
[1759021141302,16.34993838,203.44,203.39,37.58614829]
[1759021141482,2.03434437,203.4,203.39,37.58614829]
[1759021141793,2.03434437,203.4,203.39,38.28614829]
[1759021142679,2.03434437,203.4,203.39,37.58614829]
[1759021143607,2.75434437,203.4,203.39,37.58614829]
[1759021143808,2.03434437,203.4,203.39,37.58614829]
[1759021144305,3.3079701,203.42,203.39,38.28614829]
[1759021144470,2.03434437,203.42,203.4,0.7]
[1759021144670,2.03434437,203.41,203.4,0.7]
[1759021146593,2.03434437,203.41,203.39,37.58614829]
[1759021146772,2.03434437,203.4,203.39,38.28614829]
[1759021147175,2.03434437,203.4,203.39,37.58614829]
[1759021148408,2.03434437,203.4,203.39,53.08306066]
[1759021148705,2.03434437,203.41,203.39,53.08306066]
[1759021148908,2.03434437,203.41,203.39,52.38306066]
[1759021149101,2.03434437,203.41,203.4,0.7]
[1759021149498,2.03434437,203.41,203.4,38.28614829]
[1759021151600,2.03434437,203.41,203.4,37.58614829]
[1759021153109,2.03434437,203.41,203.39,37.58614829]
[1759021153110,6.06573665,203.41,203.39,37.58614829]
[1759021153301,46.16008102,203.4,203.32,135.46]
[1759021153497,2.03434437,203.35,203.33,0.66]
[1759021153697,2.03434437,203.35,203.33,95.96056243]
[1759021153897,2.03434437,203.35,203.34,0.66]
[1759021158091,2.03434437,203.35,203.33,95.30056243]
[1759021158311,2.03434437,203.34,203.33,95.96056243]
[1759021158510,0.72,203.37,203.35,78.46565563]
[1759021158694,3.3121931,203.38,203.35,78.46565563]
[1759021158894,2.03434437,203.38,203.36,0.66]
[1759021159103,2.03434437,203.38,203.37,0.66]
[1759021159419,2.03434437,203.39,203.37,213.82565563]
[1759021159621,2.03434437,203.4,203.38,0.66]
[1759021159825,2.03434437,203.4,203.38,5.57669457]
[1759021160122,2.03434437,203.4,203.39,0.66]
[1759021160317,2.03434437,203.42,203.39,82.43784873]
[1759021160617,2.03434437,203.42,203.4,0.67]
[1759021160929,2.03434437,203.41,203.39,81.77784873]
[1759021161112,2.03434437,203.4,203.39,81.77784873]
[1759021161299,2.03434437,203.4,203.39,82.44784873]
[1759021163934,0.65,203.43,203.39,82.44784873]
[1759021163935,2.03434437,203.41,203.39,82.44784873]
[1759021164102,2.03434437,203.4,203.39,82.44784873]
[1759021164418,2.03434437,203.4,203.39,81.77784873]
[1759021167117,2.03434437,203.4,203.39,78.46565563]
[1759021169207,2.03434437,203.4,203.39,83.38231239]
[1759021169523,2.03434437,203.4,203.39,78.46565563]
[1759021170433,0.65,203.42,203.41,73.11537281]
[1759021170621,2.68434437,203.42,203.41,73.11537281]
[1759021176934,6.17324546,203.5,203.41,73.78537281]
[1759021177241,2.03434437,203.45,203.42,0.67]
[1759021177426,2.03434437,203.45,203.42,135.37]
[1759021177732,2.03434437,203.44,203.43,0.67]
[1759021180035,4.51675834,203.47,203.43,0.67]
[1759021180238,2.03434437,203.44,203.42,139.61593484]
[1759021180420,2.03434437,203.44,203.42,154.40992848]
[1759021180619,2.03434437,203.44,203.42,139.61593484]
[1759021180821,2.03434437,203.44,203.43,0.67]
[1759021181231,2.03434437,203.44,203.42,154.40992848]
[1759021181430,2.03434437,203.44,203.43,0.67]
[1759021182129,0.65,203.47,203.45,71.08102844]
[1759021182325,5.34964143,203.46,203.45,71.08102844]
[1759021182920,2.03434437,203.48,203.45,211.36624102]
[1759021183116,2.03434437,203.48,203.46,0.67]
[1759021183321,38.06,203.51,203.46,0.67]
[1759021183527,2.03434437,203.48,203.47,0.67]
[1759021184443,2.03434437,203.48,203.47,5.58472944]
[1759021185250,2.03434437,203.49,203.47,5.58472944]
[1759021185425,2.03434437,203.48,203.47,5.58472944]
[1759021185621,2.03434437,203.48,203.47,0.67]
[1759021185931,2.03434437,203.48,203.46,220.5721045]
[1759021186139,2.03434437,203.47,203.46,206.45102844]
[1759021186338,2.03434437,203.47,203.46,221.24210449]
[1759021187231,2.03434437,203.47,203.46,205.78102844]
[1759021188037,3.31198537,203.5,203.49,68.39668407]
[1759021188243,5.34632974,203.5,203.49,68.39668407]
[1759021188453,2.03434437,203.5,203.49,68.39668407]
[1759021188656,1.30166908,203.5,203.49,68.39668407]
[1759021189657,3.31198537,203.51,203.49,208.68093047]
[1759021189852,4.61365445,203.54,203.5,38.71]
[1759021190160,1.30166908,203.54,203.51,0.67]
[1759021190329,1.30166908,203.54,203.51,69.06668407]
[1759021190522,1.30166908,203.54,203.52,0.7]
[1759021190726,1.30166908,203.54,203.51,73.01033852]
[1759021190944,1.30166908,203.54,203.52,0.7]
[1759021191154,1.30166908,203.54,203.53,0.7]
[1759021191352,1.30166908,203.55,203.53,0.7]
[1759021191556,1.30166908,203.54,203.53,0.7]
[1759021192838,1.30166908,203.54,203.52,14.78743068]
[1759021193038,39.99166908,203.53,203.52,68.39668407]
[1759021193262,53.58726309,203.53,203.52,68.39668407]
[1759021193564,56.89924846,203.53,203.52,68.39668407]
[1759021197370,53.58726309,203.53,203.52,68.39668407]
[1759021198168,56.88877588,203.53,203.52,68.39668407]
[1759021200859,42.64318187,203.53,203.52,69.09668407]
[1759021201167,1.30166908,203.55,203.52,241.83668407]
[1759021201347,1.30166908,203.56,203.53,0.7]
[1759021201547,1.30166908,203.55,203.53,69.09668407]
[1759021201741,1.30166908,203.55,203.54,0.7]
[1759021202268,39.99166908,203.55,203.53,70.36814714]
[1759021202452,18.84916625,203.54,203.47,68.39668407]
[1759021202660,1.30166908,203.48,203.47,69.09668407]
[1759021205269,1.95166908,203.48,203.46,68.39668407]
[1759021205466,1.95166908,203.47,203.4,0.7]
[1759021205772,13.59559401,203.48,203.41,14.79399364]
[1759021205951,13.59559401,203.48,203.42,0.7]
[1759021205952,38.12,203.47,203.42,0.7]
[1759021206154,3.3042061,203.47,203.43,0.7]
[1759021206365,38.12,203.46,203.43,0.7]
[1759021206854,1.30166908,203.44,203.4,12.29493441]
[1759021207070,1.30166908,203.41,203.4,12.29493441]
[1759021207558,1.30166908,203.41,203.4,12.99493441]
[1759021208175,1.30166908,203.42,203.4,0.7]
[1759021208388,1.30166908,203.42,203.4,5.61642084]
[1759021208556,1.30166908,203.42,203.41,0.7]
[1759021210461,1.30166908,203.42,203.37,52.91472322]
[1759021210658,13.59559401,203.45,203.38,0.68]
[1759021210856,1.30166908,203.39,203.35,0.68]
[1759021211178,1.30166908,203.36,203.32,14.89837218]
[1759021211353,1.30166908,203.33,203.32,0.1]
[1759021211555,1.30166908,203.34,203.33,0.68]
[1759021212460,1.30166908,203.34,203.32,0.1]
[1759021212660,1.30166908,203.33,203.32,0.1]
[1759021213877,1.30166908,203.33,203.32,0.78]
[1759021214079,1.30166908,203.34,203.32,5.6983553]
[1759021214256,1.30166908,203.34,203.33,0.68]
[1759021217561,0.71,203.47,203.33,72.6931284]
[1759021217762,3.93803532,203.48,203.34,40.14166908]
[1759021217980,1.30166908,203.42,203.36,1.30166908]
[1759021218165,1.30166908,203.41,203.37,0.68]
[1759021218364,1.30166908,203.4,203.38,4.91690431]
[1759021218569,1.30166908,203.4,203.39,0.68]
[1759021218872,1.30166908,203.42,203.39,0.68]
[1759021219064,1.30166908,203.41,203.39,0.68]
[1759021219264,1.30166908,203.4,203.36,67.77501499]
[1759021219472,1.30166908,203.39,203.37,0.68]
[1759021220583,1.30166908,203.38,203.36,67.09501499]
[1759021220789,1.30166908,203.37,203.36,67.09501499]
[1759021221465,1.30166908,203.37,203.36,67.76501499]
[1759021221782,1.30166908,203.38,203.36,67.76501499]
[1759021221986,1.30166908,203.38,203.37,0.67]
[1759021222365,1.30166908,203.39,203.37,0.67]
[1759021222572,1.30166908,203.39,203.38,0.67]
[1759021222984,1.30166908,203.39,203.36,72.68240287]
[1759021223187,1.30166908,203.38,203.37,0.67]
[1759021223991,1.30166908,203.38,203.36,67.09501499]
[1759021224289,1.30166908,203.38,203.36,67.76501499]
[1759021225067,1.30166908,203.39,203.36,72.0123527]
[1759021225268,1.30166908,203.39,203.36,72.6823527]
[1759021225468,1.30166908,203.39,203.36,67.76501499]
[1759021225880,1.30166908,203.43,203.4,67.09501499]
[1759021226078,1.30166908,203.45,203.41,0.67]
[1759021226391,1.30166908,203.47,203.41,67.76501499]
[1759021226689,1.30166908,203.51,203.44,1.30166908]
[1759021226872,1.30166908,203.51,203.46,4.914971]
[1759021227272,1.30166908,203.51,203.47,0.67]
[1759021227482,1.30166908,203.49,203.44,67.76501499]
[1759021227668,1.30166908,203.48,203.45,0.67]
[1759021227864,1.30166908,203.48,203.46,0.67]
[1759021228877,1.97166908,203.47,203.44,67.09501499]
[1759021229197,1.30166908,203.45,203.44,67.09501499]
[1759021229375,1.30166908,203.45,203.38,87.47588012]
[1759021229376,1.97166908,203.45,203.38,87.47588012]
[1759021229575,1.30166908,203.42,203.38,72.68188648]
[1759021229776,1.30166908,203.42,203.39,0.67]
[1759021230089,1.30166908,203.42,203.4,0.67]
[1759021230974,1.30166908,203.41,203.38,67.09501499]
[1759021231295,1.30166908,203.39,203.38,67.09501499]
[1759021231795,1.30166908,203.39,203.38,67.76501499]
[1759021232379,0.67,203.42,203.41,65.79334591]
[1759021232597,3.87781621,203.42,203.41,65.79334591]
[1759021233205,17.47341022,203.42,203.41,65.79334591]
[1759021233503,3.20781621,203.42,203.41,65.79334591]
[1759021233700,3.87781621,203.42,203.41,65.79334591]
[1759021234286,3.20781621,203.42,203.41,65.79334591]
[1759021238592,3.20781621,203.42,203.39,0.67]
[1759021238801,3.20781621,203.41,203.39,215.2]
[1759021239391,3.20781621,203.41,203.4,0.67]
[1759021239789,13.59559401,203.48,203.42,77.29218379]
[1759021239986,3.20781621,203.43,203.42,77.96218379]
[1759021240215,51.89559401,203.48,203.42,77.96218379]
[1759021240216,3.20781621,203.45,203.42,212.66218379]
[1759021240409,3.20781621,203.46,203.43,0.67]
[1759021240707,3.20781621,203.45,203.44,0.67]
[1759021240908,3.20781621,203.45,203.44,77.96218379]
[1759021241086,3.20781621,203.46,203.44,77.96218379]
[1759021241287,3.20781621,203.46,203.45,0.67]
[1759021242210,0.67,203.56,203.45,116.26218379]
[1759021242518,3.20781621,203.52,203.47,4.91472944]
[1759021242713,0.2,203.58,203.48,0.67]
[1759021242916,3.20781621,203.54,203.49,38.3]
[1759021243113,0.2,203.58,203.5,0.67]
[1759021243416,3.20781621,203.56,203.51,38.3]
[1759021243618,3.20781621,203.56,203.52,0.67]
[1759021243913,3.20781621,203.57,203.52,0.67]
[1759021244813,3.20781621,203.57,203.53,4.91328059]
[1759021245005,3.20781621,203.57,203.54,0.67]
[1759021245205,3.20781621,203.57,203.55,0.67]
[1759021247415,3.20781621,203.57,203.55,4.91269786]
[1759021247606,3.40781621,203.58,203.56,0.67]
[1759021247916,3.40781621,203.61,203.57,0.67]
[1759021248119,0.2,203.61,203.58,0.67]
[1759021248296,3.20781621,203.59,203.57,208.38436758]
[1759021248502,3.20781621,203.58,203.57,208.38436758]
[1759021248715,5.03113029,203.58,203.57,208.38436758]
[1759021249406,5.03113029,203.59,203.57,209.05436758]
[1759021249611,5.03113029,203.6,203.58,0.67]
[1759021250423,5.23113029,203.61,203.59,0.69]
[1759021251112,0.2,203.61,203.59,0.69]
[1759021251349,0.2,203.61,203.6,0.69]
[1759021251519,0.2,203.61,203.6,74.37436758]
[1759021251725,0.2,203.61,203.6,73.68436758]
[1759021253724,5.23113029,203.61,203.6,208.38436758]
[1759021254633,2.23145328,203.61,203.6,208.38436758]
[1759021259533,0.92,203.64,203.63,71.0529143]
[1759021259737,2.95145328,203.64,203.63,71.0529143]
[1759021260541,16.54704729,203.64,203.63,71.0529143]
[1759021266612,18.57850057,203.64,203.63,71.0529143]
[1759021267221,16.54704729,203.64,203.63,71.0529143]
[1759021267625,2.23145328,203.64,203.63,71.7429143]
[1759021269634,2.23145328,203.64,203.63,76.65378205]
[1759021269935,0.2,203.64,203.63,76.65378205]
[1759021270142,0.2,203.67,203.65,68.82146102]
[1759021270346,2.23145328,203.67,203.65,203.52146102]
[1759021270553,0.2,203.71,203.66,38.86]
[1759021270720,0.2,203.71,203.66,40.89145328]
[1759021270921,0.2,203.71,203.67,0.66]
[1759021271139,0.2,203.71,203.68,38.24]
[1759021271318,0.2,203.71,203.69,0.66]
[1759021271513,0.2,203.71,203.69,5.56942117]
[1759021271951,0.2,203.71,203.69,0.66]
[1759021272140,2.23145328,203.7,203.67,0.66]
[1759021272343,2.03145328,203.68,203.63,0.66]
[1759021272534,2.03145328,203.64,203.61,4.91135013]
[1759021272732,2.03145328,203.64,203.62,38.28]
[1759021273131,2.03145328,203.63,203.55,15.62704729]
[1759021273441,2.03145328,203.62,203.57,17.1931031]
[1759021273625,2.03145328,203.62,203.58,38.94]
[1759021273941,2.03145328,203.62,203.59,0.66]
[1759021274122,2.03145328,203.62,203.6,38.28]
[1759021274329,2.03145328,203.62,203.61,0.66]
[1759021274535,5.02831228,203.62,203.61,0.66]
[1759021274931,5.02831228,203.63,203.61,0.66]
[1759021275139,5.02831228,203.63,203.62,0.66]
[1759021275439,5.02831228,203.63,203.62,5.57110892]
[1759021275638,5.02831228,203.63,203.62,0.66]
[1759021276444,5.02831228,203.63,203.62,5.57110892]
[1759021276629,5.02831228,203.63,203.62,0.66]
[1759021276940,0.2,203.7,203.62,0.66]